fUSD/lending_fUSD_20251212
["ID","MTS","AMOUNT","RATE_DAILY","PERIOD"]
[398315335,1765528242614,-500.0,0.0003696,120]
[398315336,1765528242624,-2500.0,0.00036986,120]
[398315337,1765528242634,-181.0,0.00037041,2]
[398315338,1765528242647,-500.0,0.00037123,30]
[398315339,1765528242657,-500.0,0.00037123,30]
[398315340,1765528242666,-500.0,0.00037123,30]
[398315341,1765528242676,-181.0,0.00037131,2]
[398315343,1765528242687,-1134.04097299,0.00037194,2]
[398315345,1765528242696,-168.0,0.0003721,2]
[398315347,1765528242706,-2500.0,0.0003726,120]
[398315348,1765528242715,-500.0,0.00037397,30]
[398315349,1765528242724,-500.0,0.00037397,30]
[398315350,1765528242735,-268.5053698,0.00037503,2]
[398315351,1765528242744,-2500.0,0.00037534,120]
[398315352,1765528242754,-181.0,0.00037549,7]
[398315353,1765528242763,-168.0,0.00037568,2]
[398315354,1765528242773,-3079.9779,0.00037571,2]
[398315355,1765528242782,-168.0,0.00037625,7]
[398315356,1765528242791,-500.0,0.00037671,30]
[398315357,1765528242801,-500.0,0.00037671,30]
[398315358,1765528242811,-152.0,0.00037734,6]
[398315359,1765528242820,-764.52390429,0.00037792,120]
[398315360,1765528242835,-1235.47609571,0.00037792,120]
[398315361,1765528242844,-1500.0,0.000378,2]
[398315362,1765528242854,-1500.0,0.000378,2]
[398315363,1765528242863,-1500.0,0.000378,2]
[398315364,1765528242872,-1500.0,0.000378,2]
[398315365,1765528242882,-1500.0,0.000378,2]
[398315366,1765528242892,-1500.0,0.000378,2]
[398315367,1765528242902,-1500.0,0.000378,2]
[398315368,1765528242911,-1500.0,0.000378,2]
[398315369,1765528242920,-1500.0,0.000378,2]
[398315370,1765528242930,-1500.0,0.000378,2]
[398315371,1765528242939,-1500.0,0.000378,2]
[398315372,1765528242949,-1500.0,0.000378,2]
[398315373,1765528242958,-1534.81340157,0.000378,2]
[398315374,1765528242968,-1500.0,0.000378,2]
[398315375,1765528242978,-500.0,0.00037808,120]
[398315376,1765528242988,-1917.82685694,0.00037808,120]
[398315377,1765528243005,-306.96782944,0.00037808,120]
[398315378,1765528243017,-275.20531362,0.00037808,120]
[398315379,1765528243028,-500.0,0.00037945,30]
[398315380,1765528243038,-500.0,0.00037945,30]
[398315381,1765528243047,-181.0,0.00037959,120]
[398315382,1765528243057,-204.69236363,0.00038,30]
[398315383,1765528243067,-168.0,0.00038039,2]
[398315384,1765528243077,-200.0,0.00038046,10]
[398315385,1765528243087,-200.0,0.00038047,10]
[398315386,1765528243096,-168.0,0.00038051,2]
[398315387,1765528243107,-2500.0,0.00038082,120]
[398315388,1765528243116,-1000.0,0.00038154,2]
[398315389,1765528243127,-1329.1282,0.00038154,2]
[398315390,1765528243137,-159.67108242,0.00038154,27]
[398315391,1765528243147,-224.1471208,0.00038154,13]
[398315392,1765528243157,-1149.56941927,0.00038156,2]
[398315393,1765528243168,-2001.3611,0.00038164,3]
[398315394,1765528243177,-2000.0,0.00038164,3]
[398315396,1765528243187,-224.14712079,0.00038203,13]
[398315398,1765528243197,-377.0,0.00038219,5]
[398315399,1765528243207,-500.0,0.00038219,30]
[398315401,1765528243217,-500.0,0.00038219,30]
[398315402,1765528243227,-150.0,0.00038219,60]
[398315403,1765528243236,-500.0,0.00038219,60]
[398315404,1765528243246,-500.0,0.00038219,120]
[398315405,1765528243258,-1149.56941926,0.00038228,2]
[398315406,1765528243269,-224.14712079,0.00038252,13]
[398315407,1765528243279,-500.0,0.00038253,2]
[398315408,1765528243288,-500.0,0.00038253,2]
[398315409,1765528243298,-500.0,0.00038253,2]
[398315410,1765528243308,-500.0,0.00038253,30]
[398315411,1765528243317,-500.0,0.00038253,30]
[398315412,1765528243328,-513.81694351,0.00038253,30]
[398315413,1765528243338,-500.0,0.00038253,30]
[398315414,1765528243347,-500.0,0.00038253,30]
[398315415,1765528243357,-539.56324415,0.00038253,30]
[398315416,1765528243366,-500.0,0.00038253,30]
[398315417,1765528243375,-82784.13218385,0.00038254,2]
[398315418,1765528243387,-6176.93849631,0.00038254,2]
[398315419,1765528243556,-455.83943095,0.00038254,2]
[398315420,1765528243568,-368.14700699,0.00038254,2]
[398315421,1765528243580,-2448.77003185,0.00038254,2]
[398315422,1765528243591,-107175.56629703,0.00038254,2]
[398315423,1765528243607,-661.84555687,0.00038254,2]
[398315424,1765528243622,-132273.25993654,0.00038254,2]
[398315425,1765528243633,-11481.11060699,0.00038254,2]
[398315426,1765528243643,-477.11038784,0.00038254,2]
[398315427,1765528243654,-10680.19915017,0.00038254,2]
[398315428,1765528243665,-1242.13822015,0.00038254,2]
[398315429,1765528245717,-411.66870214,0.00038254,2]
[398315430,1765528245784,-259.90101775,0.00038254,2]
[398315431,1765528245796,-1859.17475675,0.00038254,2]
[398315432,1765528245810,-1870.13505931,0.00038254,2]
[398315433,1765528245821,-858.69059918,0.00038254,2]
[398315434,1765528245867,-1079.06939273,0.00038254,2]
[398315435,1765528245878,-1086.88479984,0.00038254,2]
[398315436,1765528246062,-1287.19001,0.00038254,2]
[398315473,1765528923969,150.0,0.00015345,2]
[398315550,1765529351875,500.0,0.0001345,10]
[398315553,1765529363067,500.0,0.0001345,10]
[398315567,1765529374348,587.15,0.0001345,5]
[398315568,1765529388527,348.66256416,0.000135,5]
[398315569,1765529402693,500.0,0.000136,5]
[398315570,1765529423197,500.0,0.000136,5]
[398315571,1765529431850,-685.86,0.00017406,2]
[398315572,1765529431859,-685.86,0.00018322,2]
[398315573,1765529431869,-685.86,0.00019238,2]
[398315574,1765529431879,-482.08725529,0.00020155,2]
[398315575,1765529431890,-203.77274471,0.00020155,2]
[398315576,1765529431900,-336.76868307,0.00021071,2]
[398315577,1765529431910,-349.09131693,0.00021071,2]
[398315578,1765529431920,-438.18762229,0.00021987,2]
[398315579,1765529431931,-247.67237771,0.00021987,2]
[398315580,1765529431940,-231.95713535,0.00022903,2]
[398315581,1765529431952,-453.90286465,0.00022903,2]
[398315582,1765529431962,-28.22713535,0.00023819,2]
[398315583,1765529431981,-657.63286465,0.00023819,2]
[398315584,1765529431990,-169.45187083,0.000247,2]
[398315585,1765529432002,-72.26474217,0.000247,2]
[398315586,1765529432011,-376.27727214,0.000247,2]
[398315587,1765529432022,-3.72272786,0.000247,2]
[398315588,1765529432032,-685.86,0.00024735,2]
[398315589,1765529432045,-300.0,0.00024739,2]
[398315590,1765529432054,-300.0,0.00024777,2]
[398315591,1765529432064,-346.70475703,0.00025552,2]
[398315592,1765529432073,-542.66840964,0.00025651,2]
[398315593,1765529432085,-143.19159036,0.00025651,2]
[398315594,1765529432099,-685.86,0.00026567,2]
[398315595,1765529432109,-1200.0,0.00027168,2]
[398315597,1765529432119,-300.0,0.00027168,2]
[398315599,1765529432129,-60.89769486,0.00027168,2]
[398315600,1765529432141,-398.75749433,0.00027168,2]
[398315601,1765529432152,-740.34481081,0.00027168,2]
[398315602,1765529432162,-300.0,0.00027168,2]
[398315603,1765529432171,-300.0,0.00027168,2]
[398315604,1765529432181,-300.0,0.00027168,2]
[398315605,1765529432190,-300.0,0.0002717,2]
[398315606,1765529432199,-250.0,0.0002717,2]
[398315607,1765529432210,-300.0,0.0002717,2]
[398315608,1765529432219,-250.0,0.0002717,2]
[398315609,1765529432228,-181.36480154,0.0002717,2]
[398315610,1765529432242,-250.0,0.0002717,2]
[398315611,1765529432251,-685.86,0.00027483,2]
[398315612,1765529432261,-685.86,0.00028399,2]
[398315613,1765529432270,-410.36838765,0.00029316,2]
[398315614,1765529432285,-275.49161235,0.00029316,2]
[398315615,1765529432294,-240.89911248,0.00029367,2]
[398315616,1765529432305,-1309.68764366,0.00029367,2]
[398315617,1765529437943,-129.41324386,0.00029367,2]
[398315618,1765529437953,-420.0,0.00029367,2]
[398315619,1765529437963,-151.25225535,0.00029433,2]
[398315620,1765529437973,-1680.0,0.00029496,2]
[398315621,1765529437982,-572.0,0.00030082,2]
[398315622,1765529437991,-685.86,0.00030232,2]
[398315623,1765529438001,-685.86,0.00031148,2]
[398315624,1765529438011,-500.0,0.000312,5]
[398315625,1765529438021,-176.39513176,0.000312,5]
[398315626,1765529438030,-304.0,0.00031212,2]
[398315627,1765529438041,-1000.0,0.00031748,5]
[398315628,1765529438051,-1200.0,0.00032023,3]
[398315629,1765529438062,-685.86,0.00032064,2]
[398315630,1765529438072,-173.14,0.00032295,2]
[398315631,1765529438082,-405.67429813,0.00032296,5]
[398315632,1765529438096,-685.86,0.0003298,2]
[398315633,1765529438106,-138.05170261,0.00033381,30]
[398315634,1765529438118,-28.60829739,0.00033381,30]
[398315635,1765529438128,-443.26536606,0.00033896,2]
[398315636,1765529438140,-242.59463394,0.00033896,2]
[398315637,1765529438150,-166.66,0.00034083,30]
[398315638,1765529438159,-150.0,0.00034495,2]
[398315639,1765529438169,-150.0,0.00034496,4]
[398315640,1765529438180,-150.0,0.00034496,4]
[398315641,1765529438193,-150.0,0.00034496,4]
[398315642,1765529438202,-150.0,0.00034496,4]
[398315643,1765529438212,-150.0,0.00034496,4]
[398315644,1765529438222,-150.0,0.00034496,4]
[398315645,1765529438231,-150.30840032,0.00034496,4]
[398315646,1765529438241,-150.4783543,0.00034496,4]
[398315647,1765529438251,-150.0,0.00034496,4]
[398315648,1765529438261,-150.0,0.00034496,4]
[398315650,1765529438270,-150.41457453,0.00034496,4]
[398315652,1765529438280,-150.0,0.00034496,4]
[398315654,1765529438289,-150.0,0.00034496,4]
[398315655,1765529438298,-597.54403691,0.00034758,120]
[398315656,1765529438310,-509.57715147,0.00034758,120]
[398315658,1765529438331,-392.87881162,0.00034758,120]
[398315660,1765529438341,-166.66,0.00034786,30]
[398315661,1765529438351,-685.86,0.00034812,2]
[398315662,1765529438361,-1492.14072333,0.00035446,2]
[398315663,1765529438377,-360.27927667,0.00035446,2]
[398315664,1765529438386,-40.72072336,0.00035454,7]
[398315665,1765529438398,-109.27927664,0.00035454,7]
[398315666,1765529438407,-166.66,0.00035489,30]
[398315667,1765529438418,-168.0,0.00035503,2]
[398315668,1765529438427,-2409.30347117,0.00035572,2]
[398315669,1765529438437,-168.0,0.00035573,2]
[398315670,1765529438447,-168.0,0.00035583,2]
[398315671,1765529438456,-150.48966718,0.00035616,90]
[398315672,1765529438465,-150.0,0.00035774,7]
[398315673,1765529438475,-150.0,0.00035774,7]
[398315674,1765529438485,-234.0,0.00035832,120]
[398315675,1765529438495,-166.54,0.0003584,120]
[398315676,1765529438504,-234.0,0.00035861,2]
[398315677,1765529438514,-500.0,0.0003595,14]
[398315678,1765529438524,-761.29,0.00036039,44]
[398315679,1765529438534,-1197.43,0.0003604,2]
[398315680,1765529438545,-166.66,0.00036192,30]
[398315681,1765529438556,-235.0,0.00036395,2]
[398315682,1765529438565,-150.0,0.00036412,7]
[398315683,1765529438575,-150.0,0.00036412,7]
[398315684,1765529438585,-150.0,0.00036412,7]
[398315685,1765529438594,-150.0,0.00036412,7]
[398315686,1765529438604,-234.0,0.0003645,7]
[398315687,1765529438613,-999.0,0.00036584,3]
[398315688,1765529438623,-168.0,0.00036612,7]
[398315689,1765529438633,-168.0,0.00036627,2]
[398315690,1765529438643,-234.0,0.00036715,120]
[398315691,1765529438652,-500.0,0.00036804,30]
[398315692,1765529438662,-500.0,0.00036804,30]
[398315693,1765529438672,-500.0,0.00036804,30]
[398315694,1765529438682,-500.0,0.00036804,30]
[398315695,1765529438692,-500.0,0.00036804,30]
[398315696,1765529438701,-500.0,0.00036804,30]
[398315697,1765529438711,-500.0,0.00036804,30]
[398315698,1765529438720,-500.0,0.00036804,30]
[398315699,1765529438731,-500.0,0.00036804,30]
[398315700,1765529438741,-500.0,0.00036804,30]
[398315701,1765529438751,-500.0,0.00036804,30]
[398315702,1765529438760,-500.0,0.00036804,30]
[398315703,1765529438770,-500.0,0.00036804,30]
[398315704,1765529438780,-500.0,0.00036804,30]
[398315705,1765529438790,-500.0,0.00036804,30]
[398315706,1765529438800,-500.0,0.00036804,30]
[398315707,1765529438811,-500.0,0.00036804,30]
[398315708,1765529438822,-500.0,0.00036804,30]
[398315709,1765529438831,-500.0,0.00036804,30]
[398315710,1765529438841,-500.0,0.00036804,30]
[398315711,1765529438851,-500.0,0.00036804,30]
[398315712,1765529438861,-500.0,0.00036804,30]
[398315713,1765529438871,-500.0,0.00036804,30]
[398315714,1765529438882,-500.0,0.00036804,30]
[398315715,1765529438891,-500.0,0.00036804,30]
[398315716,1765529438902,-500.0,0.00036804,30]
[398315717,1765529438911,-500.0,0.00036804,30]
[398315718,1765529438922,-166.66,0.00036894,30]
[398315719,1765529438931,-150.0,0.00037,30]
[398315720,1765529438941,-1880.0,0.00037,10]
[398315721,1765529438951,-166.6,0.00037034,2]
[398315722,1765529438961,-150.0,0.00037051,7]
[398315723,1765529438971,-150.0,0.00037051,7]
[398315724,1765529438981,-167.45,0.00037313,2]
[398315725,1765529438993,-756.02731532,0.00037354,2]
[398315726,1765529439003,-1000.0,0.00037354,2]
[398315727,1765529439012,-150.0,0.00037371,7]
[398315728,1765529439023,-234.0,0.00037433,2]
[398315729,1765529439032,-234.0,0.00037435,2]
[398315730,1765529439042,-234.0,0.00037863,7]
[398315731,1765529439053,-168.0,0.00037871,2]
[398315732,1765529439063,-168.0,0.00037898,2]
[398315733,1765529439073,-265.93101062,0.00037957,15]
[398315734,1765529439083,-500.0,0.00037957,15]
[398315735,1765529439097,-185.25980451,0.00037957,15]
[398315736,1765529439107,-500.0,0.00037957,15]
[398315737,1765529439116,-387.10983873,0.00037957,15]
[398315738,1765529439126,-200.0,0.00038037,10]
[398315739,1765529439137,-435.13043429,0.00038053,15]
[398315740,1765529439147,-77437.9082753,0.00038054,2]
[398315756,1765529440551,-1437.73838879,0.00038054,2]
[398315759,1765529440569,-1363.68834929,0.00038054,2]
[398315764,1765529440599,-360.11324534,0.00038054,2]
[398315767,1765529440617,-344.80999999,0.00038054,2]
[398315770,1765529440635,-463.663,0.00038054,2]
[398315774,1765529440657,-34556.35591095,0.00038054,2]
[398315801,1765529440897,-1446.41958768,0.00038054,2]
[398315804,1765529440914,-73701.36667494,0.00038054,2]
[398315810,1765529442924,-2580.0,0.00038054,2]
[398315812,1765529443030,-908.811586,0.00038054,2]
[398315864,1765529850724,172.1,0.00013699,2]
[398315870,1765529906179,6526.95743584,0.00015144,10]
[398315871,1765529906200,3473.04256416,0.00015144,10]
[398315873,1765529917758,6526.95743584,0.00015144,10]
[398315874,1765529917778,3106.48256416,0.00015144,10]
[398315882,1765529994441,6893.51743584,0.00015144,10]
[398315883,1765529994462,3106.48256416,0.00015144,10]
[398315884,1765530000366,6893.51743584,0.00015144,10]
[398315885,1765530000392,3106.48256416,0.00015144,10]
[398315969,1765530604025,-327.0,0.00020187,2]
[398315970,1765530604048,-300.0,0.00020187,2]
[398315971,1765530604070,-172.1,0.00020187,2]
[398315972,1765530604091,-1200.0,0.00022205,2]
[398315973,1765530604112,-195.0,0.00022206,2]
[398315974,1765530604136,-300.0,0.00022206,2]
[398315975,1765530604159,-300.0,0.00022206,2]
[398315976,1765530604181,-250.0,0.00022206,2]
[398315977,1765530604202,-480.49485374,0.00022206,2]
[398315978,1765530604223,-300.0,0.00023229,2]
[398315979,1765530604245,-172.1,0.00026676,2]
[398315980,1765530604268,-199.48447556,0.0002689,2]
[398315981,1765530604290,-300.0,0.00026989,2]
[398315982,1765530604311,-300.0,0.00026989,2]
[398315983,1765530604334,-1510.46464592,0.0002699,2]
[398315984,1765530604360,-150.0,0.00027067,2]
[398315985,1765530604382,-413.4635,0.00027068,2]
[398315986,1765530604405,-499.99,0.00027068,2]
[398315987,1765530604427,-308.69,0.00027068,2]
[398315988,1765530604450,-2321.21252478,0.00027068,2]
[398315989,1765530605850,-7678.77747522,0.00027068,2]
[398315990,1765530605871,-2321.22252478,0.00027068,2]
[398315992,1765530609021,-180.0959994,0.0002433,2]
[398315993,1765530609043,-7678.76747522,0.00027068,2]
[398315994,1765530609064,-299.99,0.00027068,12]
[398316002,1765530632040,-163.49460664,0.0002,2]
[398316003,1765530632050,-185.47,0.00028807,2]
[398316004,1765530632059,-1224.81806291,0.00028807,2]
[398316005,1765530632091,-4123.97193709,0.00028807,2]
[398316006,1765530632101,-1174.01,0.00028807,2]
[398316007,1765530632110,-150.99,0.00028807,2]
[398316008,1765530632119,-150.99,0.00028807,2]
[398316009,1765530632129,-759.0,0.00031761,2]
[398316010,1765530632138,-172.1,0.00033165,2]
[398316011,1765530632148,-500.0,0.00033671,2]
[398316012,1765530632158,-191.12818532,0.00034496,4]
[398316013,1765530632167,-156.04438028,0.00034496,4]
[398316014,1765530632177,-150.0,0.00034496,4]
[398316015,1765530632186,-150.0,0.00034496,4]
[398316016,1765530632196,-264.60302406,0.00034496,4]
[398316017,1765530632205,-150.0,0.00034496,4]
[398316018,1765530632215,-205.71936407,0.00034496,4]
[398316019,1765530632225,-5000.0,0.000347,2]
[398316020,1765530632234,-200.0,0.00035787,2]
[398316021,1765530632244,-451.69,0.00035936,2]
[398316022,1765530632254,-579.71,0.00036,30]
[398316024,1765530632264,-32329.15725767,0.00036,2]
[398316027,1765530632275,-1600.0,0.00036283,120]
[398316028,1765530632285,-900.0,0.00036438,14]
[398316030,1765530632295,-2000.0,0.00036438,14]
[398316032,1765530632305,-2100.0,0.00036438,14]
[398316034,1765530632315,-891.82,0.00036438,5]
[398316035,1765530632324,-257.91778498,0.00036583,3]
[398316036,1765530632334,-600.0,0.00036804,30]
[398316037,1765530632345,-500.0,0.00036804,30]
[398316038,1765530632354,-500.0,0.00036804,30]
[398316039,1765530632364,-500.0,0.00036804,30]
[398316040,1765530632375,-500.0,0.00036804,30]
[398316041,1765530632385,-500.0,0.00036804,30]
[398316042,1765530632395,-500.0,0.00036804,30]
[398316043,1765530632404,-150.0,0.00036893,2]
[398316044,1765530632414,-172.65358978,0.0003709,2]
[398316045,1765530632424,-159.67108242,0.0003709,25]
[398316046,1765530632434,-910.94458545,0.0003709,2]
[398316047,1765530632444,-151.0,0.00037168,14]
[398316048,1765530632455,-304.591304,0.0003717,15]
[398316049,1765530632465,-4583.73079889,0.00037171,2]
[398316050,1765530632477,-1067.80683421,0.00037171,2]
[398316051,1765530632489,-1183.6451463,0.00037171,2]
[398316058,1765530640126,-154.12331541,0.00036803,15]
[398316059,1765530640136,-3816.26585088,0.00037171,2]
[398316060,1765530640179,-4473.5,0.00037171,2]
[398316061,1765530640190,-11046.84689329,0.00037171,2]
[398316062,1765530640201,-14061.98089215,0.00037171,2]
[398316063,1765530640212,-644.0,0.00037171,2]
[398316064,1765530640234,-25000.0,0.00037171,2]
[398316065,1765530640598,-1176.1018764,0.00037171,2]
[398316069,1765530643218,-6855.90067227,0.00037171,2]
[398316070,1765530643230,-25149.11484012,0.00037171,2]
[398316071,1765530643272,-175565.98935056,0.00037171,2]
[398316096,1765530646106,-56356.05599936,0.00037171,2]
[398316112,1765530646369,-899.38806021,0.00037171,2]
[398316129,1765530750472,1209.0,0.000202,30]
[398316266,1765531832324,-1219.01038694,0.00015984,2]
[398316267,1765531832377,-838.36217896,0.00015984,2]
[398316268,1765531832386,-732.0,0.00015999,2]
[398316269,1765531832396,-189.0,0.00015999,2]
[398316270,1765531832405,-8276.0921378,0.00016,4]
[398316305,1765531838335,-213.2139128,0.00015999,2]
[398316306,1765531838345,-111.3020872,0.00016,4]
[398316308,1765531838547,-335.00823583,0.00016,4]
[398316332,1765531840527,-13851.02829593,0.00016,4]
[398316333,1765531840551,-916.02860131,0.00016,4]
[398316334,1765531840589,-23989.30025605,0.00016,4]
[398316335,1765531840607,-4138.7968325,0.00016,4]
[398316336,1765531840625,-3030.275,0.00016,4]
[398316337,1765531840682,-447.64232731,0.00016,4]
[398316338,1765531840700,-375.32230847,0.00016,4]
[398316340,1765531843309,-8380.0,0.00016,4]
[398316341,1765531843330,-41948.53962085,0.00016,4]
[398316342,1765531843416,-166018.83629159,0.00016,4]
[398316343,1765531843432,-1278.41317155,0.000161,2]
[398316344,1765531843448,-5000.0,0.000162,5]
[398316345,1765531843465,-1278.41317151,0.00018623,2]
[398316346,1765531843480,-1278.41317151,0.00021145,2]
[398316347,1765531843494,-1278.41317151,0.00023668,2]
[398316348,1765531843509,-500.0,0.00024,2]
[398316349,1765531843524,-500.0,0.00024373,2]
[398316350,1765531843540,-500.0,0.00024373,2]
[398316351,1765531843555,-177.2954573,0.00024373,2]
[398316352,1765531843569,-500.0,0.00024921,2]
[398316353,1765531843584,-500.0,0.00024921,2]
[398316354,1765531843598,-867.2446701,0.000257,2]
[398316373,1765531844000,-867.2446701,0.000257,2]
[398316374,1765531844021,-19673.91427697,0.00027023,2]
[398316375,1765531844030,-749.0,0.00029192,2]
[398316376,1765531844039,-169.47859473,0.00030704,2]
[398316377,1765531844048,-999.99,0.00030804,2]
[398316378,1765531844058,-253.0,0.00030804,2]
[398316379,1765531844067,-1176.0,0.00030804,2]
[398316380,1765531844077,-452.40613989,0.0003121,2]
[398316381,1765531844086,-1028.82,0.00032398,2]
[398316382,1765531844095,-150.99,0.00032398,2]
[398316383,1765531844105,-152.0,0.00034162,3]
[398316384,1765531844115,-150.0,0.00034496,4]
[398316385,1765531844124,-167.45,0.00034895,2]
[398316386,1765531844133,-2152.36309684,0.00035,30]
[398316387,1765531844142,-719.18167386,0.00035,2]
[398316388,1765531844152,-4750.0,0.00035006,2]
[398316389,1765531844160,-303.74,0.00035945,24]
[398316390,1765531844171,-166.6,0.00036149,2]
[398316391,1765531844181,-1000.0,0.00036163,2]
[398316392,1765531844190,-152.0,0.00036181,4]
[398316393,1765531844200,-1800.0,0.00036438,14]
[398316394,1765531844209,-900.0,0.00036438,14]
[398316395,1765531844219,-1900.0,0.00036438,14]
[398316396,1765531844228,-609.032,0.0003655,45]
[398316397,1765531844237,-166.35,0.0003655,120]
[398316398,1765531844247,-14422.65072569,0.000368,30]
[398316399,1765531844256,-168.0,0.00036916,2]
[398316400,1765531844265,-168.0,0.00036942,2]
[398316401,1765531844275,-2991.42710172,0.00036971,2]
[398316402,1765531844285,-659.4374744,0.00036992,2]
[398316403,1765531844295,-25841.4849385,0.00036992,2]
[398316404,1765531844305,-435.6739171,0.00036992,2]
[398316405,1765531844315,-722.02478806,0.00037,7]
[398316406,1765531844325,-200.0,0.0003707,2]
[398316407,1765531844334,-500.0,0.0003707,2]
[398316408,1765531844344,-209222.41921269,0.00037071,2]
[398316409,1765531844356,-5366.39459187,0.00037071,2]
[398316533,1765532866029,164.48,0.00013699,2]
[398316562,1765533031384,-298.1025574,0.00015999,2]
[398316568,1765533031437,-201.8974426,0.00015999,2]
[398316570,1765533031447,-284.0,0.00015999,2]
[398316571,1765533031457,-173.26665491,0.00017455,2]
[398316572,1765533031468,-226.73334509,0.00017455,2]
[398316573,1765533031479,-168.11298986,0.00017599,2]
[398316574,1765533031490,-131.88701014,0.00017599,2]
[398316575,1765533031499,-195.0,0.00017599,2]
[398316576,1765533031509,-400.0,0.00018374,2]
[398316577,1765533031517,-173.44893402,0.00018399,7]
[398316578,1765533031527,-199.94850002,0.00019193,2]
[398316579,1765533031535,-400.0,0.00019293,2]
[398316580,1765533031546,-164.48,0.00020187,2]
[398316581,1765533031555,-400.0,0.00020211,2]
[398316582,1765533031564,-400.0,0.0002113,2]
[398316583,1765533031573,-400.0,0.00022049,2]
[398316584,1765533031582,-400.0,0.00022967,2]
[398316585,1765533031592,-400.0,0.00023886,2]
[398316586,1765533031601,-400.0,0.00024805,2]
[398316587,1765533031610,-173.44893402,0.000257,2]
[398316588,1765533031620,-400.0,0.00025723,2]
[398316589,1765533031629,-400.0,0.00026642,2]
[398316590,1765533031638,-164.48,0.00026676,2]
[398316591,1765533031648,-400.0,0.00027561,2]
[398316592,1765533031657,-400.0,0.00028479,2]
[398316593,1765533031666,-300.0,0.00028753,2]
[398316594,1765533031675,-1200.0,0.00028753,2]
[398316595,1765533031684,-513.30868829,0.00028754,2]
[398316596,1765533031695,-500.0,0.00028754,2]
[398316597,1765533031707,-186.69131171,0.00028754,2]
[398316598,1765533031716,-119.30868829,0.00028755,2]
[398316599,1765533031727,-1643.83792421,0.00028755,2]
[398316600,1765533032021,-2771.291998,0.00028755,2]
[398316601,1765533032032,-400.0,0.00029398,2]
[398316602,1765533032043,-794.97469379,0.000299,2]
[398316603,1765533032063,-209.02530621,0.000299,2]
[398316604,1765533032072,-453.01748339,0.0003,5]
[398316605,1765533032081,-405.0,0.0003,2]
[398316606,1765533032091,-1699.89929391,0.0003,10]
[398316607,1765533032100,-400.0,0.00030317,2]
[398316608,1765533032109,-480.0,0.00031163,3]
[398316609,1765533032118,-400.0,0.00031235,2]
[398316610,1765533032128,-500.0,0.00031388,14]
[398316611,1765533032138,-1600.0,0.00031805,120]
[398316612,1765533032147,-400.0,0.00032154,2]
[398316613,1765533032156,-2771.291998,0.00032393,2]
[398316614,1765533032165,-612.436,0.000325,2]
[398316615,1765533032174,-3460.973,0.000325,2]
[398316616,1765533032183,-1262.739,0.000325,2]
[398316617,1765533032192,-615.561,0.000325,2]
[398316618,1765533032201,-4763.0,0.000325,2]
[398316619,1765533032210,-546.569,0.000325,2]
[398316620,1765533032219,-258.034,0.000325,2]
[398316621,1765533032229,-862.15014236,0.00032539,2]
[398316622,1765533032240,-900.99647014,0.00032539,2]
[398316623,1765533032250,-400.0,0.00033073,2]
[398316624,1765533032259,-164.48,0.00033165,2]
[398316625,1765533032268,-166.66,0.00033714,30]
[398316626,1765533032278,-547.33,0.00033714,2]
[398316627,1765533032287,-400.0,0.00033992,2]
[398316628,1765533032296,-166.66,0.00034424,30]
[398316629,1765533032305,-733.48,0.00034501,120]
[398316630,1765533032315,-400.0,0.0003491,2]
[398316631,1765533032325,-200.0,0.00035,7]